{"text_format":"1","workbook":"xlsx","n_sheets":4,"sheets":["Title","ARABIC","ExcelGuruPatch","Recap"],"not_rendered":{"charts":0,"images":13,"macros":1,"external_links":0,"defined_names":24,"comments":0,"pivot_tables":0},"unopened":[],"bounds":{"document_bytes":16777216,"sheet_cells":100000,"rows_first":2000,"rows_last":500,"rows_between":2000,"halvings":0,"cell_chars":16384,"cell_head_chars":4096},"cells_cut":0,"cells_raw":0,"read":"whole","date_system":"1900"}

{"sheet":"Title","index":0,"n_rows":25,"n_cols":13,"rows_kept":25,"cut":false,"hidden":false,"merged":[]}
[]
[]
[]
[]
[]
[]
[null,null,null,null,null,null,null,null,null,null,null,null,2000]
[]
[]
[]
[]
[]
[]
[]
[]
[]
[]
[]
[]
[]
[]
[]
[]
[]
["Image credit: Alexas_Fotos / Pixabay"]

{"sheet":"ARABIC","index":1,"n_rows":81,"n_cols":12,"rows_kept":81,"cut":false,"hidden":false,"merged":[]}
["Podcast #","MM",{"$f":"_xlfn.ARABIC(B1)","v":2000}]
["Excel Book #","XL",{"$f":"_xlfn.ARABIC(B2)","v":40}]
["Super Bowl","LI",{"$f":"_xlfn.ARABIC(B3)","v":51}]
[]
[1,{"$f":"ROMAN(A5)","v":"I"}]
[5,{"$f":"ROMAN(A6)","v":"V"}]
[10,"X"]
[50,"L"]
[100,"C"]
[500,"D"]
[1000,"M"]
[2017,"MMXVII"]
[3999,"MMMCMXCIX"]
[]
[{"$f":"REPT(\"M\",254)","v":"MMMMMMMMMMMMMMMMMMMMMMMMMMMMMMMMMMMMMMMMMMMMMMMMMMMMMMMMMMMMMMMMMMMMMMMMMMMMMMMMMMMMMMMMMMMMMMMMMMMMMMMMMMMMMMMMMMMMMMMMMMMMMMMMMMMMMMMMMMMMMMMMMMMMMMMMMMMMMMMMMMMMMMMMMMMMMMMMMMMMMMMMMMMMMMMMMMMMMMMMMMMMMMMMMMMMMMMMMMMMMMMMMMMMMMMMMMMMMMMMMMMMMMMMMMMMMM"},{"$f":"_xlfn.ARABIC(A15)","v":254000},null,null,null,null,null,null,null,null,null,{"$f":"_xlfn.FORMULATEXT(C15)","v":{"$error":"#N/A"}}]
[null,null,null,null,null,null,null,null,null,null,null,{"$f":"_xlfn.FORMULATEXT(C16)","v":{"$error":"#N/A"}}]
[]
[{"$f":"INDEX($B$5:$B$11,RANDBETWEEN(1,7))","v":"M"},null,null,null,null,null,null,null,null,null,null,{"$f":"_xlfn.FORMULATEXT(A18)","v":"=INDEX($B$5:$B$11,RANDBETWEEN(1,7))"}]
[{"$f":"INDEX($B$5:$B$11,RANDBETWEEN(1,7))","v":"D"}]
["I"]
["C"]
["V"]
["C"]
["V"]
["C"]
["X"]
["C"]
["I"]
[]
[]
[]
[]
[]
[]
[]
[]
[]
[]
[]
[]
[]
[]
[]
[]
[]
[]
[]
[]
[]
[]
[]
[]
[]
[]
[]
[]
[]
[]
[]
[]
[]
[]
[]
[]
[]
[]
[]
[]
[]
[]
[]
[]
[]
[null,null,null,null,null,null,1,"New South Wales",7238800,7618200,5.2400000000000002E-2,0.32029999999999997]
[null,null,null,null,null,null,2,"Victoria",5547500,5938100,7.0400000000000004E-2,0.24970000000000001]
[null,null,null,null,null,null,3,"Queensland",4516400,4779400,5.8200000000000002E-2,0.2009]
[null,null,null,null,null,null,4,"Western Australia",2296400,2591600,0.1285,0.1089]
[null,null,null,null,null,null,5,"South Australia",1644600,1698600,3.2800000000000003E-2,7.1400000000000005E-2]
[null,null,null,null,null,null,6,"Tasmania",507600,516600,1.77E-2,2.1700000000000001E-2]
[null,null,null,null,null,null,7,"Australian Capital Territory",358900,390800,8.8900000000000007E-2,1.6400000000000001E-2]
[null,null,null,null,null,null,8,"Northern Territory"]

{"sheet":"ExcelGuruPatch","index":2,"n_rows":0,"n_cols":0,"rows_kept":0,"cut":false,"hidden":false,"merged":[]}

{"sheet":"Recap","index":3,"n_rows":10,"n_cols":2,"rows_kept":10,"cut":false,"hidden":false,"merged":[]}
["Episode Recap"]
[]
[null,"To convert Roman numerals to Arabic, use =ARABIC"]
[null,"To convert numbers to Roman, use =ROMAN"]
[null,"ROMAN is only valid from 1 to 3999"]
[null,"ARABIC works with any nonsensical mix of IVXLCDM, up to 254 characters"]
[null,"CONCAT - New in Feb 2016"]
[null,"INDEX, RANDBETWEEN"]
[null,"Repeat 254 M with =REPT(\"M\",254)"]
[null,"See my rocket photography at www.ReportSpace.com"]